bitfinex-derivatives/quotes_BTCF0:USTF0_20251108
["timestamp","ask_amount","ask_price","bid_price","bid_amount"]
[1762616051378,0.20256918,101690.0,101680.0,0.46649132]
[1762616053290,0.20256918,101690.0,101680.0,0.52544132]
[1762616054080,0.20256918,101690.0,101680.0,0.42347702]
[1762616054280,0.20256918,101690.0,101680.0,0.52544132]
[1762616057177,0.20256918,101690.0,101680.0,0.42705702]
[1762616057584,0.20256918,101690.0,101680.0,0.06625702]
[1762616057889,0.40236089,101690.0,101680.0,0.00014702]
[1762616058095,0.76316089,101690.0,101680.0,0.00014702]
[1762616059895,0.7280324,101690.0,101680.0,0.00014702]
[1762616061902,0.76308989,101690.0,101680.0,0.00014702]
[1762616062596,0.05758,101660.0,101650.0,0.466365]
[1762616062991,0.16690784,101660.0,101650.0,0.466365]
[1762616063300,0.16690784,101660.0,101650.0,0.525315]
[1762616063498,0.16690784,101660.0,101650.0,0.5253232]
[1762616064086,0.16690784,101660.0,101650.0,0.5283232]
[1762616064503,0.16690784,101660.0,101650.0,0.4693732]
[1762616064700,0.16690784,101660.0,101650.0,0.5283232]
[1762616064994,0.16690784,101660.0,101650.0,0.42991]
[1762616065894,0.16690784,101660.0,101650.0,0.07111]
[1762616066102,0.16690784,101660.0,101650.0,0.06753]
[1762616066298,0.16690784,101660.0,101650.0,0.01216]
[1762616066493,0.16690784,101660.0,101650.0,0.005]
[1762616068106,0.26531134,101660.0,101650.0,0.005]
[1762616068488,0.77347414,101660.0,101650.0,0.005]
[1762616068891,0.808523,101660.0,101650.0,0.005]
[1762616069499,0.0584,101650.0,101640.0,0.00014702]
[1762616069703,0.4192,101650.0,101640.0,0.00014702]
[1762616069906,0.71432326,101650.0,101640.0,0.00014702]
[1762616070304,0.6792744,101650.0,101640.0,0.00014702]
[1762616070905,0.6792744,101650.0,101640.0,0.00314702]
[1762616071109,0.71432326,101650.0,101640.0,0.00714702]
[1762616071304,0.6792744,101650.0,101640.0,0.00714702]
[1762616072001,0.71432326,101650.0,101640.0,0.00714702]
[1762616074214,1.05484326,101650.0,101640.0,0.00714702]
[1762616075014,0.0584,101630.0,101620.0,0.38426]
[1762616075307,0.16729659,101630.0,101620.0,0.38426]
[1762616075514,0.16729659,101630.0,101620.0,0.44321]
[1762616076307,0.16729659,101630.0,101620.0,0.66560823]
[1762616076502,0.16729659,101630.0,101620.0,0.67060823]
[1762616078316,0.16729659,101630.0,101620.0,0.57216593]
[1762616078708,0.26572919,101630.0,101620.0,0.45321]
[1762616078900,0.26572919,101630.0,101620.0,0.57216593]
[1762616080116,0.26572919,101630.0,101620.0,0.67060823]
[1762616083414,0.26572919,101630.0,101620.0,0.57216593]
[1762616083619,0.26572919,101630.0,101620.0,0.67060823]
[1762616084421,0.26572919,101630.0,101620.0,0.78956726]
[1762616086825,0.26572919,101630.0,101620.0,0.5516523]
[1762616087119,0.26572919,101630.0,101620.0,0.78956736]
[1762616088415,0.26572919,101630.0,101620.0,0.45321]
[1762616088717,0.26572919,101630.0,101620.0,0.78956736]
[1762616092319,0.16729659,101630.0,101620.0,0.79356736]
[1762616092514,0.10889659,101630.0,101620.0,0.79356736]
[1762616093116,0.10889659,101630.0,101620.0,0.73461736]
[1762616093424,0.10889659,101630.0,101620.0,0.79356736]
[1762616093925,0.13115659,101630.0,101620.0,0.79356736]
[1762616094221,0.15367659,101630.0,101620.0,0.79356736]
[1762616094820,0.16720659,101630.0,101620.0,0.69112496]
[1762616096225,0.16720659,101630.0,101620.0,0.57216748]
[1762616096420,0.20225545,101630.0,101620.0,0.57216748]
[1762616097115,0.20225545,101630.0,101620.0,0.67060988]
[1762616097321,0.20225545,101630.0,101620.0,0.78956736]
[1762616098421,0.20225545,101630.0,101620.0,0.69112496]
[1762616098724,0.20225545,101630.0,101620.0,0.78956726]
[1762616099726,0.25482875,101630.0,101620.0,0.78956726]
[1762616100423,0.35326145,101630.0,101620.0,0.78956726]
[1762616100629,0.30068815,101630.0,101620.0,0.78956726]
[1762616101929,0.35326145,101630.0,101620.0,0.78956726]
[1762616103418,0.30068815,101630.0,101620.0,0.78956726]
[1762616103619,0.35326145,101630.0,101620.0,0.78956726]
[1762616104530,0.35326145,101630.0,101620.0,0.69112496]
[1762616104918,0.35326145,101630.0,101620.0,0.78956716]
[1762616105326,0.35326145,101630.0,101620.0,0.67060968]
[1762616105829,0.35326145,101630.0,101620.0,0.57216748]
[1762616106129,0.35326145,101630.0,101620.0,0.78956716]
[1762616109723,0.35326145,101630.0,101620.0,0.5516522]
[1762616109918,0.35326145,101630.0,101620.0,0.78956716]
[1762616110523,0.35326145,101630.0,101620.0,0.57216748]
[1762616110725,0.35326145,101630.0,101620.0,0.67060988]
[1762616110925,0.35326145,101630.0,101620.0,0.78956736]
[1762616111636,0.35326145,101630.0,101620.0,0.67060988]
[1762616112134,0.35326145,101630.0,101620.0,0.78956736]
[1762616114741,0.35326145,101630.0,101620.0,0.5516524]
[1762616115034,0.35326145,101630.0,101620.0,0.78956736]
[1762616117626,0.30068815,101630.0,101620.0,0.78956736]
[1762616117827,0.35326145,101630.0,101620.0,0.78956736]
[1762616118032,0.30068815,101630.0,101620.0,0.78956736]
[1762616118329,0.35326145,101630.0,101620.0,0.78956736]
[1762616120239,0.16620545,101630.0,101620.0,0.79356736]
[1762616120435,0.10889659,101630.0,101620.0,1.18080333]
[1762616120932,0.13133659,101630.0,101620.0,1.18080333]
[1762616121539,0.25243929,101630.0,101620.0,1.18080333]
[1762616121731,0.25243929,101630.0,101620.0,1.08236093]
[1762616121931,0.26576929,101630.0,101620.0,1.18080333]
[1762616122135,0.30081815,101630.0,101620.0,0.78956736]
[1762616123238,0.41977563,101630.0,101620.0,0.57216748]
[1762616123435,0.41977563,101630.0,101620.0,0.45321]
[1762616123638,0.98136302,101630.0,101620.0,0.04146]
[1762616123843,0.96395982,101630.0,101620.0,0.04146]
[1762616124640,0.58562071,101630.0,101620.0,0.16041748]
[1762616124831,0.60315982,101630.0,101620.0,0.16041748]
[1762616125031,0.53294086,101630.0,101620.0,0.16041748]
[1762616125237,0.89974086,101630.0,101620.0,0.15041748]
[1762616125437,0.59161005,101630.0,101620.0,0.15041748]
[1762616125638,0.95241005,101630.0,101620.0,0.15041748]
[1762616125832,0.59161005,101630.0,101620.0,0.15041748]
[1762616126842,0.93205005,101630.0,101620.0,0.15041748]
[1762616127731,0.81309257,101630.0,101620.0,0.24885988]
[1762616127934,0.93205005,101630.0,101620.0,0.24885988]
[1762616128635,0.93205005,101630.0,101620.0,0.15041748]
[1762616131046,0.93205005,101630.0,101620.0,0.03146]
[1762616131346,0.93205005,101630.0,101620.0,0.15041748]
[1762616131847,1.29285005,101630.0,101620.0,0.03146]
[1762616132544,0.93205005,101630.0,101620.0,0.03146]
[1762616132849,0.93205005,101630.0,101620.0,0.01573]
[1762616133148,0.05737,101620.0,101610.0,0.6098084]
[1762616133349,0.09246806,101620.0,101610.0,0.6098084]
[1762616133539,0.34369521,101620.0,101610.0,0.6098084]
[1762616133740,0.35601321,101620.0,101610.0,0.6687584]
[1762616134447,0.47497069,101620.0,101610.0,0.6687584]
[1762616135151,0.47997069,101620.0,101610.0,0.6687584]
[1762616137348,0.36101321,101620.0,101610.0,0.54980092]
[1762616137548,0.36101321,101620.0,101610.0,0.6687584]
[1762616137857,0.47997069,101620.0,101610.0,0.6687584]
[1762616139047,0.36101321,101620.0,101610.0,0.6687584]
[1762616139246,0.47997069,101620.0,101610.0,0.6687584]
[1762616141457,0.47997069,101620.0,101610.0,0.54980092]
[1762616141662,0.47997069,101620.0,101610.0,0.6687584]
[1762616142856,0.36101321,101620.0,101610.0,0.54980092]
[1762616143364,0.36101321,101620.0,101610.0,0.6687584]
[1762616143559,0.47997069,101620.0,101610.0,0.6687584]
[1762616144561,0.45945561,101620.0,101610.0,0.07482702]
[1762616144866,0.63108228,101620.0,101610.0,0.09055702]
[1762616145068,0.63108228,101620.0,101610.0,0.07482702]
[1762616145264,0.7149417,101620.0,101610.0,0.05909702]
[1762616145469,0.75000605,101620.0,101610.0,0.07482702]
[1762616145971,0.750002,101620.0,101610.0,0.07482702]
[1762616146269,0.63104452,101620.0,101610.0,0.18900922]
[1762616146569,0.63109352,101620.0,101610.0,0.18900922]
[1762616146870,0.63109352,101620.0,101610.0,0.54980922]
[1762616147258,0.51208704,101620.0,101610.0,0.54980922]
[1762616147963,0.63109352,101620.0,101610.0,0.54980922]
[1762616148166,0.51208704,101620.0,101610.0,0.54980922]
[1762616148366,0.59035504,101620.0,101610.0,0.54980922]
[1762616148959,0.59035504,101620.0,101610.0,0.6688157]
[1762616149162,0.59035504,101620.0,101610.0,0.54980922]
[1762616151371,0.59035504,101620.0,101610.0,0.54980892]
[1762616151672,0.59035504,101620.0,101610.0,0.09055702]
[1762616152371,0.55529474,101620.0,101610.0,0.09055702]
[1762616152676,0.55529474,101620.0,101610.0,0.07482702]
[1762616152874,0.55529474,101620.0,101610.0,0.09055702]
[1762616156275,0.55529474,101620.0,101610.0,0.07482702]
[1762616158569,0.59034822,101620.0,101610.0,0.09055702]
[1762616159875,0.67430122,101620.0,101610.0,0.00014702]
[1762616161074,1.03510122,101620.0,101610.0,0.00014702]
[1762616163583,1.37546122,101620.0,101610.0,0.00014702]
[1762616163782,0.91609474,101620.0,101610.0,0.00014702]
[1762616163973,0.89565474,101620.0,101610.0,0.13005912]
[1762616164280,0.89565474,101620.0,101610.0,0.00014702]
[1762616164980,0.89565474,101620.0,101610.0,0.01587702]
[1762616165184,0.89565474,101620.0,101610.0,0.00014702]
[1762616165480,0.89565474,101620.0,101610.0,0.01587702]
[1762616166077,0.89565474,101620.0,101610.0,0.00014702]
[1762616166874,1.25645474,101620.0,101610.0,0.00014702]
[1762616167075,0.89565474,101620.0,101610.0,0.01587702]
[1762616167275,1.25645474,101620.0,101610.0,0.00014702]
[1762616167479,0.89565474,101620.0,101610.0,0.00014702]
[1762616167874,1.01466122,101620.0,101610.0,0.00014702]
[1762616168074,1.37546122,101620.0,101610.0,0.00014702]
[1762616169483,1.01466122,101620.0,101610.0,0.00014702]
[1762616169683,1.37546122,101620.0,101610.0,0.00014702]
[1762616169878,1.01466122,101620.0,101610.0,0.00014702]
[1762616170086,0.89561474,101620.0,101610.0,0.18900912]
[1762616173085,0.89561474,101620.0,101610.0,0.13005912]
[1762616173286,0.89561474,101620.0,101610.0,0.09055702]
[1762616173787,0.89561474,101620.0,101610.0,0.18900912]
[1762616174384,0.91316451,101620.0,101610.0,0.18900912]
[1762616175385,0.91316451,101620.0,101610.0,0.09055702]
[1762616175592,0.91316451,101620.0,101610.0,0.05909702]
[1762616175892,0.96195203,101620.0,101610.0,0.05909702]
[1762616176294,0.96195203,101620.0,101610.0,0.17327892]
[1762616177096,0.84294555,101620.0,101610.0,0.17327892]
[1762616178198,0.84294555,101620.0,101610.0,0.07482702]
[1762616178398,0.89555693,101620.0,101610.0,0.05909702]
[1762616178598,0.84294555,101620.0,101610.0,0.05909702]
[1762616179101,0.96195203,101620.0,101610.0,0.05909702]
[1762616179493,0.96195203,101620.0,101610.0,0.09055702]
[1762616179699,0.84294555,101620.0,101610.0,0.18900892]
[1762616179900,0.96195203,101620.0,101610.0,0.18900892]
[1762616180394,0.84294555,101620.0,101610.0,0.18900892]
[1762616180595,0.89556215,101620.0,101610.0,0.18900892]
[1762616180895,0.40418315,101620.0,101610.0,0.18900892]
[1762616181100,0.40761416,101620.0,101610.0,0.6688154]
[1762616181785,0.40761416,101620.0,101610.0,0.54980892]
[1762616181986,0.40761416,101620.0,101610.0,0.45135702]
[1762616183185,0.40761416,101620.0,101610.0,0.54980892]
[1762616184596,0.40761416,101620.0,101610.0,0.6688154]
[1762616185305,0.32934616,101620.0,101610.0,0.6688154]
[1762616185799,0.36442319,101620.0,101610.0,0.54980892]
[1762616186593,0.32934616,101620.0,101610.0,0.54980892]
[1762616187592,0.3644181,101620.0,101610.0,0.54980892]
[1762616188498,0.21335864,101620.0,101610.0,0.6688154]
[1762616191199,0.05238994,101620.0,101610.0,0.79082188]
[1762616191399,0.017318,101620.0,101610.0,1.06329785]
[1762616191605,0.017318,101620.0,101610.0,0.81725785]
[1762616192304,0.016318,101620.0,101610.0,0.81725785]
[1762616192697,0.013318,101620.0,101610.0,0.81725785]
[1762616192897,0.015318,101620.0,101610.0,0.81725785]
[1762616193402,0.014318,101620.0,101610.0,0.81725785]
[1762616194203,0.013318,101620.0,101610.0,0.81725785]
[1762616194402,0.013318,101620.0,101610.0,1.06329785]
[1762616195000,0.19080216,101640.0,101630.0,0.1298929]
[1762616195206,0.19080216,101640.0,101630.0,0.66864938]
[1762616195601,0.31033001,101640.0,101630.0,0.66864938]
[1762616195906,0.21190681,101640.0,101630.0,0.66864938]
[1762616196206,0.21390681,101640.0,101630.0,0.66864938]
[1762616196506,0.31233001,101640.0,101630.0,0.66864938]
[1762616197202,0.21590681,101640.0,101630.0,0.66864938]
[1762616197404,0.18083487,101640.0,101630.0,0.66864938]
[1762616197601,0.18083487,101640.0,101630.0,1.02944938]
[1762616199709,0.17983487,101640.0,101630.0,1.02944938]
[1762616199904,0.17983487,101640.0,101630.0,0.9104429]
[1762616200108,0.17783487,101640.0,101630.0,1.02944938]
[1762616200408,0.17883487,101640.0,101630.0,1.02944938]
[1762616201004,0.17783487,101640.0,101630.0,1.02944938]
[1762616201307,0.17883487,101640.0,101630.0,1.02944938]
[1762616205609,0.01358742,101640.0,101630.0,1.03259938]
[1762616206406,0.03679742,101640.0,101630.0,1.15139822]
[1762616206605,0.07114742,101640.0,101630.0,1.14824822]
[1762616207111,0.07114742,101640.0,101630.0,1.02934556]
[1762616211618,0.16957052,101640.0,101630.0,1.02934556]
[1762616211819,0.07114742,101640.0,101630.0,1.02934556]
[1762616212212,0.05807742,101640.0,101630.0,1.03249556]
[1762616212820,0.05807742,101640.0,101630.0,1.15139822]
[1762616213921,0.05707742,101640.0,101630.0,1.15139822]
[1762616214716,0.01258742,101640.0,101630.0,1.15139822]
[1762616215417,0.03579742,101640.0,101630.0,1.15139822]
[1762616216121,0.03579742,101640.0,101630.0,1.30099822]
[1762616216910,0.01258742,101640.0,101630.0,1.30099822]
[1762616217510,0.05794742,101640.0,101630.0,1.29784822]
[1762616217822,0.07178742,101640.0,101630.0,1.29784822]
[1762616220413,0.07178742,101640.0,101630.0,1.32428419]
[1762616220722,0.07178742,101640.0,101630.0,1.20538153]
[1762616220916,0.07178742,101640.0,101630.0,1.17894556]
[1762616221317,0.01258742,101640.0,101630.0,1.30099822]
[1762616221519,0.01258742,101640.0,101630.0,1.32753948]
[1762616223323,0.01258742,101640.0,101630.0,1.36291347]
[1762616223527,0.01258742,101640.0,101630.0,1.33637221]
[1762616223823,0.09368194,101660.0,101650.0,0.1046932]
[1762616224035,0.09368194,101660.0,101650.0,0.58439586]
[1762616224230,0.20666376,101660.0,101650.0,0.58439586]
[1762616224629,0.20666376,101660.0,101650.0,0.64334586]
[1762616224831,0.21852013,101660.0,101650.0,0.64334586]
[1762616225130,0.22152013,101660.0,101650.0,0.64334586]
[1762616225430,0.18644819,101660.0,101650.0,0.64334586]
[1762616225729,0.18644819,101660.0,101650.0,1.00414586]
[1762616226323,0.03734637,101660.0,101650.0,1.12304852]
[1762616226530,0.07405637,101660.0,101650.0,1.00414586]
[1762616226931,0.07405637,101660.0,101650.0,0.8852432]
[1762616227132,0.18724622,101660.0,101650.0,1.00414586]
[1762616227723,0.18624622,101660.0,101650.0,1.00414586]
[1762616227931,0.18624622,101660.0,101650.0,0.8852432]
[1762616228130,0.18624622,101660.0,101650.0,1.00414586]
[1762616229135,0.18524622,101660.0,101650.0,1.00414586]
[1762616236433,0.01285637,101660.0,101650.0,1.12304852]
[1762616236735,0.01285637,101660.0,101650.0,1.14959368]
[1762616237338,0.01285637,101660.0,101650.0,1.18496767]
[1762616237640,0.01285637,101660.0,101650.0,1.43088767]
[1762616238041,0.01285637,101660.0,101650.0,1.18496767]
[1762616238238,0.00014702,101670.0,101660.0,0.1046838]
[1762616238444,0.07140194,101690.0,101680.0,0.00628]
[1762616238646,0.1468892,101700.0,101690.0,0.1046547]
[1762616238942,0.25194554,101700.0,101690.0,0.28250736]
[1762616239246,0.19932828,101700.0,101690.0,0.22355736]
[1762616239443,0.19932828,101700.0,101690.0,0.12518266]
[1762616239744,0.21214129,101700.0,101690.0,0.12518266]
[1762616240533,0.21214129,101700.0,101690.0,0.58435746]
[1762616241035,0.17706935,101700.0,101690.0,0.58435746]
[1762616242139,0.18006935,101700.0,101690.0,0.58435746]
[1762616242740,0.18006935,101700.0,101690.0,0.64330746]
[1762616244447,0.18006935,101700.0,101690.0,0.58435746]
[1762616244646,0.18006935,101700.0,101690.0,0.64330746]
[1762616246248,0.17706935,101700.0,101690.0,0.64330746]
[1762616246548,0.17906935,101700.0,101690.0,0.64330746]
[1762616247349,0.17906935,101700.0,101690.0,0.76221012]
[1762616247839,0.07401301,101700.0,101690.0,0.76221012]
[1762616248044,0.05114301,101700.0,101690.0,0.76221012]
[1762616248255,0.01481301,101700.0,101690.0,0.76221012]
[1762616248552,0.01481301,101700.0,101690.0,1.15765012]
[1762616248844,0.01481301,101700.0,101690.0,0.91181012]
[1762616250040,0.01481301,101700.0,101690.0,0.6740048]
[1762616250341,0.01481301,101700.0,101690.0,0.91181012]
[1762616250943,0.01481301,101700.0,101690.0,1.15765012]
[1762616251146,0.01481301,101700.0,101690.0,0.91181012]
[1762616251344,0.01481301,101700.0,101690.0,1.15765012]
[1762616251541,0.01481301,101700.0,101690.0,0.91181012]
[1762616251741,0.01481301,101700.0,101690.0,1.15765012]
[1762616251951,0.01481301,101700.0,101690.0,0.91181012]
[1762616253752,0.03667301,101700.0,101690.0,0.91181012]
[1762616255750,0.01481301,101700.0,101690.0,0.91181012]
[1762616256452,0.00014702,101710.0,101700.0,0.1046446]
[1762616256647,0.05633702,101710.0,101700.0,0.76219992]
[1762616257747,0.06922455,101710.0,101700.0,0.5243946]
[1762616258050,0.06922455,101710.0,101700.0,0.76219992]
[1762616259841,0.04775455,101710.0,101700.0,0.76219992]
[1762616260053,0.06922455,101710.0,101700.0,0.91179992]
[1762616264441,0.06922455,101710.0,101700.0,0.85284992]
[1762616264639,0.06922455,101710.0,101700.0,0.91179992]
[1762616268051,0.06922455,101710.0,101700.0,0.75448532]
[1762616268254,0.17410822,101710.0,101700.0,0.73394726]
[1762616268458,0.17410822,101710.0,101700.0,0.73382613]
[1762616268760,0.88868324,101710.0,101700.0,0.1496]
[1762616268947,0.8536113,101710.0,101700.0,0.1496]
[1762616269146,0.8886874,101710.0,101700.0,0.1496]
[1762616269354,0.05853,101690.0,101680.0,0.58438525]
[1762616270057,0.05853,101690.0,101680.0,0.66974533]
[1762616270846,0.05853,101690.0,101680.0,0.4920138]
[1762616271047,0.16741501,101690.0,101680.0,0.46560372]
[1762616271247,0.16741501,101690.0,101680.0,0.52455372]
[1762616271460,0.16741501,101690.0,101680.0,0.64333525]
[1762616271958,0.16741501,101690.0,101680.0,0.54495855]
[1762616272156,0.16741501,101690.0,101680.0,0.64334245]
[1762616272349,0.16741501,101690.0,101680.0,0.36722702]
[1762616272554,0.32127644,101690.0,101680.0,0.36194702]
[1762616272756,0.20249491,101690.0,101680.0,0.36194702]
[1762616273162,0.20249491,101690.0,101680.0,0.00114702]
[1762616273655,0.25511217,101690.0,101680.0,0.46661092]
[1762616273862,0.25511217,101690.0,101680.0,0.00642702]
[1762616274651,0.25511217,101690.0,101680.0,0.10481092]
[1762616274851,0.25511217,101690.0,101680.0,0.46561092]
[1762616275359,0.25511217,101690.0,101680.0,0.58439245]
[1762616275557,0.16741501,101690.0,101680.0,0.64334245]
[1762616279058,0.16741501,101690.0,101680.0,0.54495855]
[1762616279362,0.16741501,101690.0,101680.0,0.64334245]
[1762616283267,0.0356,101690.0,101680.0,0.64334245]
[1762616284164,0.05893,101700.0,101690.0,0.00628]
[1762616284367,0.10631445,101710.0,101700.0,0.1046445]
[1762616284663,0.18440725,101710.0,101700.0,0.64317603]
[1762616284864,0.18440725,101710.0,101700.0,0.36708]
[1762616285159,0.05862,101700.0,101690.0,0.36708]
[1762616285361,0.05862,101700.0,101690.0,0.42603]
[1762616285570,0.16210031,101700.0,101690.0,0.42603]
[1762616285951,0.16310031,101700.0,101690.0,0.42603]
[1762616286362,0.16310031,101700.0,101690.0,0.5244041]
[1762616286562,0.16310031,101700.0,101690.0,0.42603]
[1762616286761,0.05862,101690.0,101680.0,0.58438425]
[1762616286957,0.05862,101690.0,101680.0,0.64333425]
[1762616287259,0.16314733,101690.0,101680.0,0.64333425]
[1762616289062,0.10452733,101690.0,101680.0,0.64333425]
[1762616289271,0.05862,101700.0,101690.0,0.1046541]
[1762616289461,0.05862,101700.0,101690.0,0.64318563]
[1762616289658,0.1696333,101700.0,101690.0,0.64318563]
[1762616292666,0.1473533,101700.0,101690.0,0.64318563]
[1762616293458,0.1110133,101700.0,101690.0,0.64318563]
[1762616293653,0.1110133,101700.0,101690.0,0.66969029]
[1762616294658,0.07123455,101710.0,101700.0,0.1046444]
[1762616294863,0.07123455,101710.0,101700.0,0.64317593]
[1762616295065,0.18361555,101710.0,101700.0,0.64317593]
[1762616296073,0.18461555,101710.0,101700.0,0.64317593]
[1762616299966,0.13927555,101710.0,101700.0,0.91155746]
[1762616300159,0.01403455,101710.0,101700.0,0.91469746]
[1762616300567,0.14631716,101730.0,101720.0,0.104625]
[1762616300865,0.25430516,101730.0,101720.0,0.64315653]
[1762616301067,0.21579937,101730.0,101720.0,0.64315653]
[1762616301276,0.18071947,101730.0,101720.0,0.64315653]
[1762616301677,0.18071947,101730.0,101720.0,1.00395653]
[1762616302972,0.18171947,101730.0,101720.0,1.00395653]
[1762616304266,0.18171947,101730.0,101720.0,0.90561153]
[1762616304465,0.18171947,101730.0,101720.0,0.84666153]
[1762616304680,0.18171947,101730.0,101720.0,1.00395653]
[1762616305573,0.18171947,101730.0,101720.0,0.78683]
[1762616305775,0.18171947,101730.0,101720.0,0.36708]
[1762616306079,0.18171947,101730.0,101720.0,0.3608]
[1762616306577,0.05686,101720.0,101710.0,0.58435725]
[1762616306770,0.05686,101720.0,101710.0,0.64330725]
[1762616306969,0.16410067,101720.0,101710.0,0.64330725]
[1762616310076,0.16410067,101720.0,101710.0,0.54495855]
[1762616310580,0.16410067,101720.0,101710.0,0.64331325]
[1762616311583,0.16510067,101720.0,101710.0,0.64331325]
[1762616311781,0.16510067,101720.0,101710.0,0.54495855]
[1762616311974,0.16510067,101720.0,101710.0,0.42617702]
[1762616312283,0.16510067,101720.0,101710.0,0.52453172]
[1762616312669,0.20018057,101720.0,101710.0,0.06537702]
[1762616312874,0.20018057,101720.0,101710.0,0.16373172]
[1762616313985,0.20018057,101720.0,101710.0,0.52453172]
[1762616315889,0.16510067,101720.0,101710.0,0.64331325]
[1762616318392,0.14400067,101720.0,101710.0,0.64331325]
[1762616318590,0.16510067,101720.0,101710.0,0.64331325]
[1762616319287,0.16410067,101720.0,101710.0,0.64331325]
[1762616319589,0.16410067,101720.0,101710.0,0.66981791]
[1762616322885,0.16410067,101720.0,101710.0,0.64331325]
[1762616323286,0.16410067,101720.0,101710.0,0.64431325]
[1762616324687,0.16410067,101720.0,101710.0,0.52553172]
[1762616324994,0.16410067,101720.0,101710.0,0.42403702]
[1762616325310,0.16410067,101720.0,101710.0,0.42717702]
[1762616325494,0.16410067,101720.0,101710.0,0.52553172]
[1762616326583,0.19918057,101720.0,101710.0,0.52453172]
[1762616326987,0.19918057,101720.0,101710.0,0.42617702]
[1762616327186,0.19918057,101720.0,101710.0,0.52453172]
[1762616328386,0.19918057,101720.0,101710.0,0.64329359]
[1762616333088,0.19918057,101720.0,101710.0,0.58434359]
[1762616333398,0.19918057,101720.0,101710.0,0.64329359]
[1762616334495,0.19918057,101720.0,101710.0,0.28249359]
[1762616334691,0.19918057,101720.0,101710.0,0.54493889]
[1762616334895,0.31794244,101720.0,101710.0,0.54493889]
[1762616335888,0.31794244,101720.0,101710.0,0.42617702]
[1762616336088,0.31794244,101720.0,101710.0,0.54493889]
[1762616340199,0.19918057,101720.0,101710.0,0.64329349]
[1762616341790,0.19918057,101720.0,101710.0,0.54493889]
[1762616341990,0.19918057,101720.0,101710.0,0.42617702]
[1762616342191,0.19918057,101720.0,101710.0,0.54493889]
[1762616343493,0.31794244,101720.0,101710.0,0.42617702]
[1762616343695,0.31794244,101720.0,101710.0,0.54493889]
[1762616343899,0.19918057,101720.0,101710.0,0.54493889]
[1762616345302,0.19918057,101720.0,101710.0,0.64329359]
[1762616346002,0.17808057,101720.0,101710.0,0.66979825]
[1762616346204,0.0350799,101720.0,101710.0,0.79170012]
[1762616346994,0.0937999,101720.0,101710.0,0.69020542]
[1762616347201,0.0937999,101720.0,101710.0,0.66979815]
[1762616347395,0.13811863,101730.0,101720.0,0.104625]
[1762616347597,0.15981863,101730.0,101720.0,0.76189874]
[1762616347905,0.26763669,101730.0,101720.0,0.76189874]
[1762616348608,0.17028943,101730.0,101720.0,0.76189874]
[1762616348907,0.04919137,101730.0,101720.0,0.76189874]
[1762616349406,0.01411147,101730.0,101720.0,0.7884034]
[1762616349596,0.09323692,101740.0,101730.0,0.1046153]
[1762616349801,0.15947223,101740.0,101730.0,0.64312717]
[1762616350003,0.21157419,101740.0,101730.0,0.64312717]
[1762616351205,0.38395332,101740.0,101730.0,0.00628]
[1762616352606,0.38395332,101740.0,101730.0,0.12504187]
[1762616353507,0.38395332,101740.0,101730.0,0.48584187]
[1762616353708,0.38395332,101740.0,101730.0,0.12504187]
[1762616354308,0.34887342,101740.0,101730.0,0.12504187]
[1762616355710,0.05872,101730.0,101720.0,0.48584187]
[1762616355902,0.09393745,101730.0,101720.0,0.48584187]
[1762616356103,0.20568013,101730.0,101720.0,0.48584187]
[1762616356309,0.20568013,101730.0,101720.0,0.54479187]
[1762616357109,0.20568013,101730.0,101720.0,0.64313687]
[1762616358004,0.20568013,101730.0,101720.0,0.54479187]
[1762616358204,0.20568013,101730.0,101720.0,0.76189874]
[1762616358508,0.11174268,101730.0,101720.0,0.76189874]
[1762616359612,0.13477268,101730.0,101720.0,0.76189874]
[1762616360509,0.17046268,101730.0,101720.0,0.76189874]
[1762616360908,0.20568013,101730.0,101720.0,0.66355374]
[1762616361310,0.20568013,101730.0,101720.0,0.76189874]
[1762616362019,0.17046268,101730.0,101720.0,0.76189874]
[1762616362321,0.17046268,101730.0,101720.0,0.524375]
[1762616362510,0.17046268,101730.0,101720.0,0.76189874]
[1762616362711,0.17046268,101730.0,101720.0,0.66355374]
[1762616362920,0.17046268,101730.0,101720.0,0.76189874]
[1762616363321,0.17046268,101730.0,101720.0,0.75875874]
[1762616363524,0.324442,101730.0,101720.0,0.3608]
[1762616363826,0.05872,101720.0,101710.0,0.36408702]
[1762616364009,0.26530512,101720.0,101710.0,0.36722702]
[1762616364208,0.37675961,101720.0,101710.0,0.48598889]
[1762616364504,0.25799774,101720.0,101710.0,0.48598889]
[1762616364711,0.37675961,101720.0,101710.0,0.48598889]
[1762616365115,0.37675961,101720.0,101710.0,0.48698889]
[1762616365913,0.25799774,101720.0,101710.0,0.48698889]
[1762616366217,0.37675961,101720.0,101710.0,0.48698889]
[1762616366912,0.25799774,101720.0,101710.0,0.48698889]
[1762616367114,0.20538048,101720.0,101710.0,0.54593889]
[1762616367418,0.20638048,101720.0,101710.0,0.64329359]
[1762616369119,0.001,101720.0,101710.0,0.78856012]
[1762616370010,0.001,101720.0,101710.0,0.82393411]
[1762616371318,0.15948832,101740.0,101730.0,0.1046153]
[1762616371512,0.10687106,101740.0,101730.0,0.64312717]
[1762616371822,0.21688545,101740.0,101730.0,0.58417717]
[1762616373607,0.21788545,101740.0,101730.0,0.58417717]
[1762616374520,0.21888545,101740.0,101730.0,0.58417717]
[1762616376620,0.27150271,101740.0,101730.0,0.58417717]
[1762616377705,0.27150271,101740.0,101730.0,0.36708]
[1762616377907,0.27150271,101740.0,101730.0,0.48584187]
[1762616378319,0.27150271,101740.0,101730.0,0.54479187]
[1762616380420,0.39026458,101740.0,101720.0,0.3608]
[1762616380718,0.05793,101720.0,101710.0,0.51249355]
[1762616380923,0.05793,101720.0,101710.0,0.54493889]
[1762616381221,0.16057509,101720.0,101710.0,0.54493889]
[1762616381516,0.31454295,101720.0,101710.0,0.36408702]
[1762616382111,0.36716021,101720.0,101710.0,0.36408702]
[1762616382311,0.19578108,101720.0,101710.0,0.36408702]
[1762616382514,0.31454295,101720.0,101710.0,0.36408702]
[1762616382922,0.31554295,101720.0,101710.0,0.36408702]
[1762616386124,0.31554295,101720.0,101710.0,0.48598889]
[1762616386424,0.19678108,101720.0,101710.0,0.64329349]
[1762616387323,0.19678108,101720.0,101710.0,0.54493889]
[1762616387629,0.19678108,101720.0,101710.0,0.64329349]
[1762616389027,0.19678108,101720.0,101710.0,0.54493889]
[1762616389625,0.31554295,101720.0,101710.0,0.36094702]
[1762616390328,0.19678108,101720.0,101710.0,0.64327214]
[1762616392022,0.19678108,101720.0,101710.0,0.54491754]
[1762616392221,0.19678108,101720.0,101710.0,0.64327214]
[1762616393129,0.19678108,101720.0,101710.0,0.58432214]
[1762616393326,0.19678108,101720.0,101710.0,0.64327214]
[1762616394028,0.19678108,101720.0,101710.0,0.52453162]
[1762616394621,0.19678108,101720.0,101710.0,0.64327214]
[1762616394622,0.16157509,101720.0,101710.0,0.64327214]
[1762616394830,0.13988509,101720.0,101710.0,0.64327214]
[1762616396530,0.16245509,101720.0,101710.0,0.64327214]
[1762616400538,0.16245509,101720.0,101710.0,0.54491754]
[1762616401334,0.16245509,101720.0,101710.0,0.64327204]